bitfinex/quotes_SOLUSD_20250924
["timestamp","ask_amount","ask_price","bid_price","bid_amount"]
[1758743643647,36.30000001,213.96,213.95,5.35398924]
[1758743644159,36.30000001,213.96,213.95,8.8316133]
[1758743644656,1e-08,213.96,213.95,8.8316133]
[1758743645150,1e-08,213.96,213.95,5.35398924]
[1758743646360,1e-08,213.96,213.95,7.51384186]
[1758743646835,1e-08,213.96,213.95,9.38786093]
[1758743647824,1e-08,213.96,213.95,18.02727141]
[1758743649847,1e-08,213.96,213.95,9.38786093]
[1758743650240,1e-08,213.96,213.95,6.54800831]
[1758743650440,36.26000001,213.96,213.95,6.54800831]
[1758743650829,36.26000001,213.96,213.95,4.67398924]
[1758743651036,1e-08,213.96,213.95,4.67398924]
[1758743651240,1e-08,213.96,213.95,7.51384186]
[1758743655078,1e-08,213.98,213.95,19.19881498]
[1758743655247,1e-08,213.98,213.97,2.15985262]
[1758743655645,1e-08,213.98,213.97,2.83985262]
[1758743655847,1e-08,213.98,213.97,7.51340498]
[1758743656378,36.26,214.02,213.97,19.19728589]
[1758743656597,36.26,214.02,213.98,0.68]
[1758743656752,36.26,214.02,213.98,2.83985262]
[1758743657260,36.26,214.03,213.98,2.83985262]
[1758743658262,36.24,214.03,213.99,16.35590447]
[1758743659159,28.15985262,214.05,213.99,16.35590447]
[1758743659481,36.24,214.04,213.99,16.35590447]
[1758743660177,2.15985262,214.04,213.99,16.35590447]
[1758743660374,36.24,214.03,213.99,16.35590447]
[1758743661276,36.22,214.02,213.99,11.68278891]
[1758743661972,26.0,214.05,213.99,13.84264153]
[1758743662159,13.59559401,214.08,214.01,2.15985262]
[1758743662365,36.22,214.04,214.01,2.15985262]
[1758743662561,36.22,214.04,214.01,2.81985262]
[1758743662766,36.22,214.04,214.02,0.66]
[1758743663169,36.22,214.04,214.03,4.6722422]
[1758743663369,26.0,214.08,214.03,16.35284772]
[1758743663567,36.22,214.07,214.03,16.35284772]
[1758743663780,26.0,214.08,214.03,16.35284772]
[1758743663781,36.22,214.06,214.03,16.35284772]
[1758743664288,36.2,214.05,214.03,16.35284772]
[1758743664984,118.56990023,214.09,214.03,12.34060552]
[1758743665282,36.2,214.06,214.03,12.34060552]
[1758743665653,36.2,214.06,214.04,0.66]
[1758743666068,28.15985262,214.1,214.04,0.66]
[1758743666350,36.2,214.09,214.04,0.66]
[1758743667081,36.2,214.09,214.05,16.35131978]
[1758743669670,36.2,214.09,214.05,17.01131978]
[1758743670255,29.70205879,214.13,214.06,0.66]
[1758743670256,121.93502758,214.12,214.06,0.66]
[1758743670562,36.18,214.11,214.06,0.66]
[1758743671076,36.18,214.11,214.07,17.00979211]
[1758743672963,39.54512735,214.11,214.07,16.34979211]
[1758743673282,3.36512735,214.1,214.07,16.34979211]
[1758743673578,3.36512735,214.1,214.05,4.67164415]
[1758743673579,29.36512735,214.08,214.05,4.67164415]
[1758743673779,36.18,214.07,214.05,4.67164415]
[1758743673981,3.36512735,214.08,214.05,4.67164415]
[1758743674353,36.18,214.07,214.05,4.67164415]
[1758743674682,3.36512735,214.08,214.05,4.67164415]
[1758743674984,36.18,214.06,214.05,4.67164415]
[1758743675367,36.18,214.06,214.04,11.67995341]
[1758743675670,3.36512735,214.08,214.04,11.67995341]
[1758743675984,36.18,214.07,214.04,11.67995341]
[1758743676180,36.18,214.06,214.03,4.6722422]
[1758743676483,39.54512735,214.06,214.03,4.6722422]
[1758743677088,39.54512735,214.06,214.03,16.35284772]
[1758743677382,36.16,214.05,214.03,16.35284772]
[1758743677562,36.16,214.05,214.04,0.66]
[1758743677766,36.16,214.05,214.03,16.35284772]
[1758743677967,36.16,214.05,214.03,17.01284772]
[1758743679478,36.2,214.05,214.03,17.01284772]
[1758743680067,3.36512735,214.07,214.03,17.01284772]
[1758743680289,26.0,214.09,214.04,0.66]
[1758743680491,36.2,214.07,214.04,0.66]
[1758743680792,36.2,214.07,214.03,16.35284772]
[1758743680992,36.2,214.07,214.04,0.66]
[1758743681389,26.0,214.09,214.05,0.66]
[1758743681692,36.18,214.08,214.05,0.66]
[1758743682078,36.18,214.07,214.05,0.66]
[1758743682596,36.18,214.07,214.03,16.35284772]
[1758743682783,36.18,214.07,214.03,17.01284772]
[1758743683500,36.18,214.07,214.03,16.35284772]
[1758743684292,3.36512735,214.08,214.03,17.01284772]
[1758743684492,36.16,214.07,214.03,16.35284772]
[1758743684690,26.0,214.09,214.04,0.66]
[1758743684996,3.36512735,214.09,214.04,0.66]
[1758743685884,3.36512735,214.09,214.05,16.35131978]
[1758743686179,3.36512735,214.09,214.06,0.66]
[1758743686382,3.36512735,214.09,214.07,0.66]
[1758743686691,36.2,214.08,214.07,0.66]
[1758743687089,36.2,214.08,214.05,17.01131978]
[1758743687287,36.2,214.08,214.06,0.66]
[1758743687990,39.56512735,214.08,214.05,11.67951413]
[1758743688294,3.36512735,214.07,214.05,11.67951413]
[1758743688481,3.36512735,214.06,214.03,4.6722422]
[1758743688690,36.18,214.05,214.03,4.6722422]
[1758743689085,36.18,214.05,214.03,5.3322422]
[1758743689678,36.18,214.05,214.03,17.01284772]
[1758743692298,36.18,214.05,214.0,17.02514018]
[1758743692471,36.18,214.05,214.01,0.67]
[1758743693096,36.18,214.05,214.02,0.67]
[1758743695180,36.18,214.05,214.03,4.6722422]
[1758743695383,36.18,214.05,214.03,5.3422422]
[1758743695582,36.18,214.05,214.03,4.6722422]
[1758743696182,36.18,214.05,214.04,0.67]
[1758743697178,3.36512735,214.08,214.04,17.02208372]
[1758743697394,36.12,214.07,214.04,17.02208372]
[1758743698192,3.36512735,214.08,214.04,17.02208372]
[1758743698391,36.12,214.07,214.04,17.02208372]
[1758743698587,3.36512735,214.08,214.04,17.02208372]
[1758743698795,36.12,214.06,214.04,17.02208372]
[1758743699199,3.36512735,214.08,214.04,16.35208372]
[1758743699402,36.12,214.07,214.04,17.02208372]
[1758743700306,26.0,214.09,214.05,0.71]
[1758743700505,16.96072136,214.12,214.06,0.71]
[1758743700689,36.12,214.11,214.06,0.71]
[1758743701006,29.36512735,214.12,214.06,0.71]
[1758743701305,39.48512735,214.1,214.04,39.71220332]
[1758743701505,39.48512735,214.1,214.04,40.42220332]
[1758743701720,39.48512735,214.1,214.05,0.71]
[1758743702017,39.48512735,214.1,214.06,0.71]
[1758743702324,39.48512735,214.1,214.07,16.34979211]
[1758743702687,3.36512735,214.09,214.07,16.34979211]
[1758743702912,3.36512735,214.08,214.07,16.34979211]
[1758743703114,3.36512735,214.08,214.07,4.67136917]
[1758743703411,36.12,214.1,214.07,4.67136917]
[1758743703412,3.36512735,214.09,214.07,4.67136917]
[1758743703793,39.48512735,214.1,214.07,17.05979211]
[1758743703997,39.48512735,214.1,214.07,16.34979211]
[1758743704911,3.36512735,214.09,214.07,4.67136917]
[1758743705088,3.36512735,214.08,214.05,4.67160458]
[1758743705413,3.36512735,214.08,214.05,5.38160458]
[1758743705414,36.12,214.07,214.05,5.38160458]
[1758743705723,26.0,214.11,214.05,5.38160458]
[1758743705724,3.36512735,214.09,214.05,5.38160458]
[1758743705909,39.48512735,214.08,214.05,4.67160458]
[1758743706118,36.12,214.07,214.05,5.38160458]
[1758743706291,36.12,214.07,214.06,0.71]
[1758743706492,29.36512735,214.09,214.07,4.67136917]
[1758743706697,36.12,214.08,214.07,4.67136917]
[1758743707724,36.12,214.08,214.04,11.67963177]
[1758743707725,36.12,214.08,214.04,12.38963177]
[1758743707916,36.12,214.08,214.05,0.71]
[1758743708320,36.12,214.08,214.04,11.67963177]
[1758743708620,36.12,214.08,214.05,0.71]
[1758743708811,36.12,214.08,214.06,4.6715874]
[1758743709502,36.1,214.07,214.06,4.6715874]
[1758743710231,39.46512735,214.07,214.01,0.71]
[1758743710408,39.46512735,214.07,214.02,11.68115129]
[1758743710722,36.1,214.07,214.04,16.35208372]
[1758743710919,36.1,214.07,214.04,17.06208372]
[1758743712993,36.1,214.07,214.04,16.35208372]
[1758743713198,3.36512735,214.07,214.04,4.67202392]
[1758743713400,3.36512735,214.05,213.98,0.71]
[1758743713620,39.46512735,214.04,213.98,0.71]
[1758743713799,3.36512735,214.02,213.98,0.71]
[1758743714128,36.1,214.02,213.99,0.71]
[1758743714304,36.1,214.02,214.0,0.71]
[1758743714822,13.59559401,214.07,214.02,4.67246051]
[1758743715124,39.46512735,214.06,214.02,5.38246051]
[1758743715718,39.46512735,214.06,214.02,17.0636118]
[1758743717221,36.1,214.06,214.02,17.0636118]
[1758743717427,3.36512735,214.05,214.02,17.0636118]
[1758743717622,3.36512735,214.07,214.03,0.71]
[1758743717921,3.36512735,214.09,214.03,0.71]
[1758743718225,36.1,214.08,214.03,0.71]
[1758743719017,39.46512735,214.08,214.04,0.71]
[1758743719401,39.46512735,214.08,214.05,16.35131978]
[1758743719604,3.36512735,214.06,214.04,4.67199059]
[1758743719825,39.46512735,214.05,214.04,4.67199059]
[1758743720214,36.1,214.05,214.04,4.67199059]
[1758743720837,36.1,214.05,214.02,16.35312248]
[1758743721025,36.1,214.05,214.02,17.04312248]
[1758743721931,36.1,214.05,214.03,0.69]
[1758743722519,26.0,214.08,214.04,0.69]
[1758743722729,36.1,214.07,214.05,4.67180565]
[1758743722907,36.1,214.07,214.05,5.36180565]
[1758743723106,36.1,214.07,214.04,11.67981439]
[1758743723107,39.46512735,214.07,214.04,4.67197524]
[1758743723307,3.36512735,214.06,214.04,4.67197524]
[1758743723519,3.36512735,214.06,214.02,4.67246051]
[1758743723722,62.1,214.07,214.03,0.69]
[1758743724032,62.1,214.07,214.02,4.67246051]
[1758743724033,36.1,214.06,214.04,0.69]
[1758743724234,26.0,214.07,214.05,0.69]
[1758743724529,36.12,214.06,214.05,0.69]
[1758743724730,36.12,214.06,214.04,4.67202392]
[1758743724940,39.48512735,214.06,214.04,4.67202392]
[1758743726611,39.48512735,214.06,213.99,12.37227334]
[1758743726612,38.27462715,214.06,213.99,12.37227334]
[1758743726819,2.15462715,214.04,213.99,12.37227334]
[1758743727119,36.12,214.03,214.0,5.36289719]
[1758743727326,36.12,214.03,214.01,0.69]
[1758743728022,36.12,214.03,214.0,16.35514018]
[1758743728326,36.12,214.03,214.01,0.69]
[1758743728944,36.12,214.03,214.02,4.67246051]
[1758743730610,38.27462715,214.03,213.97,11.68341622]
[1758743730914,2.15462715,214.01,213.97,12.37341622]
[1758743731118,36.12,214.0,213.98,0.69]
[1758743731322,36.12,214.0,213.99,0.69]
[1758743732613,36.12,214.0,213.97,16.35696858]
[1758743732614,36.12,214.0,213.97,17.04696858]
[1758743732814,36.12,214.0,213.98,0.69]
[1758743733210,36.12,214.0,213.99,4.67311556]
[1758743733439,36.12,214.0,213.99,5.36311556]
[1758743735338,36.12,214.0,213.98,4.67333395]
[1758743735519,36.12,214.0,213.98,5.36333395]
[1758743737221,2.15462715,214.02,213.98,16.35666884]
[1758743737422,36.12,214.01,213.99,0.69]
[1758743738326,36.12,214.01,213.98,16.35666884]
[1758743738526,36.12,214.01,213.98,17.04666884]
[1758743738952,2.15462715,214.0,213.98,4.67333395]
[1758743739326,36.12,213.99,213.98,0.69]
[1758743740132,2.15462715,214.01,213.98,0.69]
[1758743740333,36.12,214.0,213.98,0.69]
[1758743740732,36.12,214.0,213.99,0.69]
[1758743740931,2.15462715,214.07,213.99,2.84462715]
[1758743741139,36.12,214.06,214.0,0.69]
[1758743741335,36.12,214.06,214.02,2.15462715]
[1758743741741,36.12,214.06,214.03,0.69]
[1758743742361,38.27462715,214.06,214.01,17.04437595]
[1758743742551,36.12,214.06,214.02,0.69]
[1758743742726,36.12,214.06,214.03,0.69]
[1758743743143,34.62,214.06,214.03,0.69]
[1758743743435,36.12,214.05,214.01,19.1990031]
[1758743743628,36.12,214.05,214.02,0.69]
[1758743743834,36.12,214.05,214.03,0.69]
[1758743744148,36.12,214.05,214.01,18.5090031]
[1758743744353,36.12,214.04,214.02,0.69]
[1758743746358,36.12,214.04,214.03,4.6722422]
[1758743750345,36.12,214.04,214.02,0.69]
[1758743750346,36.12,214.04,214.02,4.67241003]
[1758743750851,38.27462715,214.04,214.02,4.67241003]
[1758743752460,36.12,214.04,214.02,0.71]
[1758743752660,36.12,214.04,214.01,16.35437595]
[1758743752839,15.75022116,214.09,214.03,2.86462715]
[1758743753039,15.75022116,214.09,214.01,16.35437595]
[1758743753040,36.12,214.08,214.04,2.86462715]
[1758743753241,36.12,214.08,214.05,0.71]
[1758743753462,36.12,214.08,214.06,0.71]
[1758743753760,15.75022116,214.09,214.06,0.71]
[1758743753969,36.12,214.08,214.02,14.05185133]
[1758743754269,2.15462715,214.06,214.02,0.71]
[1758743754562,36.1,214.05,214.03,5.3822422]
[1758743754768,36.1,214.04,214.03,4.6722422]
[1758743754968,36.1,214.04,214.03,5.3822422]
[1758743757674,36.1,214.07,214.03,17.06284772]
[1758743757962,36.1,214.07,214.04,0.71]
[1758743758566,36.1,214.07,214.05,4.67180565]
[1758743758785,36.1,214.07,214.06,0.71]
[1758743759660,2.15462715,214.08,214.06,0.71]
[1758743759974,36.1,214.07,214.06,0.71]
[1758743760646,36.1,214.07,214.06,5.3815874]
[1758743762567,36.1,214.07,214.06,4.6715874]
[1758743762869,36.1,214.07,214.06,0.72]
[1758743763285,36.1,214.07,214.05,4.67180565]
[1758743763445,36.1,214.07,214.06,0.72]
[1758743764466,36.1,214.07,214.05,4.67180565]
[1758743764777,36.1,214.07,214.05,5.39180565]
[1758743764947,36.1,214.07,214.06,0.72]
[1758743765267,38.25462715,214.07,214.06,0.72]
[1758743767172,38.25462715,214.07,214.06,5.3915874]
[1758743768574,2.15462715,214.07,214.06,5.3915874]
[1758743768759,38.25462715,214.07,214.06,5.3915874]
[1758743769879,36.1,214.07,214.06,5.3915874]
[1758743771687,36.1,214.07,214.05,0.72]
[1758743771862,36.1,214.07,214.03,0.72]
[1758743772062,36.1,214.07,214.04,0.72]
[1758743772679,36.1,214.07,214.05,0.72]
[1758743773586,36.1,214.07,214.06,0.72]
[1758743773778,36.1,214.07,214.06,5.3915874]
[1758743774660,62.1,214.09,214.06,17.07055591]
[1758743775595,62.1,214.09,214.07,0.72]
[1758743775761,62.1,214.09,214.08,4.67115097]
[1758743776585,36.1,214.09,214.08,4.67115097]
[1758743777363,36.1,214.09,214.08,0.72]
[1758743778581,36.1,214.09,214.08,5.39115097]
[1758743778968,36.1,214.09,214.04,14.04856119]
[1758743779175,36.1,214.09,214.05,0.72]
[1758743779887,36.1,214.08,214.05,0.72]
[1758743780090,36.1,214.07,214.05,0.72]
[1758743780494,36.1,214.07,214.04,4.67189739]
[1758743781194,36.1,214.07,214.03,4.6722422]
[1758743781490,36.1,214.07,214.03,5.3822422]
[1758743782267,39.59559401,214.06,213.98,24.07415869]
[1758743782509,26.0,214.02,213.97,0.71]
[1758743782683,36.1,214.01,213.97,0.71]
[1758743783202,36.1,214.01,213.98,4.67333395]
[1758743783704,36.1,214.01,213.99,0.71]
[1758743784591,18.26718701,214.06,213.98,16.35666884]
[1758743784802,13.59559401,214.04,213.98,16.35666884]
[1758743786374,13.59559401,214.04,213.98,4.67333395]
[1758743786375,26.0,214.01,213.98,4.67333395]
[1758743786574,36.1,214.0,213.98,4.67333395]
[1758743786986,36.1,214.0,213.98,5.38333395]
[1758743787288,36.1,214.0,213.99,0.71]
[1758743787486,36.1,214.0,213.99,5.38311556]
[1758743788105,36.1,214.0,213.99,17.06590447]
[1758743789709,13.59559401,214.04,213.99,17.06590447]
[1758743789913,36.1,214.03,213.99,17.06590447]
[1758743790492,36.1,214.03,214.0,0.71]
[1758743791693,13.59559401,214.11,214.02,16.3536118]
[1758743791892,26.0,214.04,214.03,0.71]
[1758743792099,62.1,214.04,214.03,0.71]
[1758743792310,36.1,214.04,214.03,0.71]
[1758743792832,36.1,214.04,214.03,17.06284772]
[1758743793312,36.1,214.04,214.03,16.35284772]
[1758743793516,36.1,214.04,214.03,17.06284772]
[1758743794016,36.1,214.04,214.01,0.71]
[1758743794212,36.1,214.04,214.02,0.71]
[1758743794518,36.1,214.04,214.03,0.71]
[1758743795111,36.1,214.04,214.02,4.67246051]
[1758743795298,36.1,214.04,214.03,0.71]
[1758743795494,26.0,214.05,214.02,16.3536118]
[1758743795698,36.1,214.04,214.03,0.71]
[1758743796510,36.1,214.04,214.02,16.3536118]
[1758743796714,36.1,214.04,214.02,17.0636118]
[1758743800431,36.1,214.04,214.02,16.3536118]
[1758743801728,36.1,214.04,214.02,11.68115129]
[1758743801900,36.1,214.04,214.01,4.67267884]
[1758743802106,13.59559401,214.03,214.01,4.67267884]
[1758743802306,36.1,214.02,214.01,4.67267884]
[1758743803707,36.1,214.02,214.0,4.67289719]
[1758743805013,35.6,214.02,214.0,4.67289719]
[1758743805529,35.6,214.02,214.0,5.38289719]
[1758743806627,36.1,214.01,214.0,5.38289719]
[1758743810113,36.1,214.01,214.0,17.06514018]
[1758743810436,13.59559401,214.04,214.0,17.06514018]
[1758743810613,62.1,214.03,214.01,0.71]
[1758743810816,36.1,214.03,214.01,0.71]
[1758743811125,36.1,214.03,214.02,0.68]
[1758743812017,36.1,214.03,214.02,5.35246051]
[1758743822318,36.1,214.03,214.02,4.67246051]
[1758743823237,62.08,214.03,214.02,4.67246051]
[1758743824314,26.0,214.03,214.02,0.7]
[1758743824529,36.08,214.03,214.02,0.7]
[1758743825343,36.08,214.03,214.02,5.37246051]
[1758743825523,26.0,214.06,214.02,17.0536118]
[1758743825835,36.08,214.05,214.03,0.7]
[1758743826136,36.08,214.05,214.04,0.7]
[1758743826916,39.22199735,214.05,214.04,0.7]
[1758743827129,39.22199735,214.05,214.04,5.37202392]
[1758743830448,39.22199735,214.05,214.03,0.7]
[1758743830747,36.08,214.05,214.03,0.7]
[1758743830949,36.08,214.05,214.04,0.7]
[1758743831151,39.22229836,214.05,214.04,0.7]
[1758743831451,3.14229836,214.05,214.04,0.7]
[1758743831626,26.0,214.06,214.04,0.7]
[1758743831822,36.08,214.05,214.04,0.7]
[1758743832450,36.08,214.05,214.04,5.37202392]
[1758743835831,26.0,214.09,214.04,17.05208372]
[1758743836155,39.22324719,214.08,214.05,0.7]
[1758743836325,3.14324719,214.07,214.05,0.7]
[1758743836527,36.08,214.08,214.05,0.7]
[1758743836834,3.14307088,214.07,214.06,4.6715874]
[1758743837150,3.14307088,214.07,214.06,5.3715874]
[1758743837869,36.08,214.08,214.06,5.3715874]
[1758743838054,36.08,214.08,214.07,0.7]
[1758743838359,3.14258505,214.08,214.07,0.7]
[1758743838529,36.08,214.08,214.07,0.7]
[1758743838852,26.0,214.12,214.07,0.7]
[1758743839255,13.59559401,214.17,214.07,0.7]
[1758743839433,39.22158021,214.16,214.07,0.7]
[1758743839636,3.14158021,214.15,214.07,0.7]
[1758743839945,36.08,214.14,214.07,0.7]
[1758743840145,36.08,214.14,214.08,16.34902839]
[1758743840446,36.08,214.14,214.09,0.7]
[1758743841156,36.06,214.13,214.09,0.7]
[1758743841338,36.06,214.12,214.09,0.7]
[1758743841946,36.06,214.12,214.1,0.72]
[1758743842452,36.06,214.12,214.11,4.67049647]
[1758743842955,36.06,214.12,214.11,5.39049647]
[1758743843451,26.0,214.16,214.11,17.06673765]
[1758743843654,36.06,214.15,214.11,17.06673765]
[1758743845135,26.0,214.16,214.11,16.34673765]
[1758743845368,36.06,214.15,214.11,17.06673765]
[1758743845549,36.06,214.15,214.12,0.72]
[1758743845735,36.06,214.15,214.11,16.34673765]
[1758743845929,36.06,214.15,214.12,0.72]
[1758743846549,36.06,214.14,214.13,0.72]
[1758743846855,36.06,214.14,214.13,5.39006024]
[1758743848239,36.06,214.14,214.13,4.67006024]
[1758743848545,36.06,214.14,214.11,4.67031404]
[1758743849349,36.06,214.14,214.12,0.72]
[1758743850934,36.06,214.14,214.13,4.67006024]
[1758743852442,36.06,214.14,214.13,5.39006024]
[1758743852754,36.06,214.14,214.13,4.67006024]
[1758743855155,36.06,214.14,214.1,4.67071461]
[1758743856458,62.06,214.14,214.1,4.67071461]
[1758743856950,62.06,214.14,214.09,4.67093278]
[1758743857149,62.06,214.14,214.09,5.39093278]
[1758743859168,62.06,214.14,214.05,16.35131978]
[1758743859468,62.06,214.14,214.06,0.72]
[1758743859761,26.0,214.11,214.06,0.72]
[1758743859967,36.04,214.1,214.06,0.72]
[1758743860370,36.04,214.1,214.07,0.72]
[1758743860664,13.59559401,214.16,214.09,4.67093278]
[1758743860847,26.0,214.12,214.09,4.67093278]
[1758743861164,36.04,214.11,214.1,0.72]
[1758743861463,36.04,214.11,214.09,17.06826474]
[1758743861668,36.04,214.11,214.1,0.72]
[1758743862666,36.04,214.11,214.1,4.67071461]
[1758743864745,36.04,214.11,214.09,4.67093278]
[1758743864974,36.04,214.11,214.09,5.39093278]
[1758743866681,26.0,214.15,214.1,0.72]
[1758743866864,26.0,214.11,214.1,0.72]
[1758743867053,62.04,214.11,214.1,0.72]
[1758743867679,62.04,214.11,214.1,5.39071461]
[1758743867913,122.3847679,214.18,214.1,17.06750115]
[1758743868172,26.0,214.14,214.11,0.72]
[1758743868361,36.04,214.13,214.11,0.72]
[1758743868557,36.04,214.13,214.12,0.72]
[1758743869569,36.04,214.13,214.1,16.34750115]
[1758743869770,36.04,214.13,214.09,0.72]
[1758743870674,36.04,214.13,214.06,14.04724557]
[1758743870871,36.04,214.13,214.1,0.71]
[1758743871452,36.04,214.13,214.06,14.04724557]
[1758743871653,36.04,214.13,214.07,0.71]
[1758743871860,36.04,214.13,214.08,16.34902839]
[1758743872176,36.04,214.13,214.09,0.71]
[1758743873297,36.04,214.13,214.1,0.71]
[1758743873863,36.04,214.13,214.11,4.67049647]
[1758743875182,36.04,214.13,214.09,4.67093278]
[1758743875680,26.0,214.1,214.09,4.67093278]
[1758743875985,62.04,214.1,214.04,0.71]
[1758743876164,66.71082145,214.1,214.02,0.71]
[1758743876480,62.04,214.1,214.03,14.04921909]
[1758743876691,62.04,214.1,214.04,0.71]
[1758743878184,66.71074052,214.1,214.05,4.67180565]
[1758743878860,62.04,214.1,214.05,4.67180565]
[1758743879073,62.04,214.09,214.05,5.38180565]
[1758743879284,62.04,214.09,214.06,0.71]
[1758743879480,62.04,214.09,214.05,4.67180565]
[1758743880000,62.04,214.09,214.03,4.6722422]
[1758743880404,62.04,214.09,214.02,17.01360785]
[1758743880602,62.04,214.09,214.03,0.66]
[1758743881494,26.0,214.09,214.03,0.66]
[1758743881692,36.04,214.1,214.03,0.66]
[1758743882498,36.04,214.1,214.04,16.35208372]
[1758743882698,36.04,214.1,214.05,0.66]
[1758743883200,26.0,214.07,214.04,16.35208372]
[1758743883382,36.04,214.06,214.05,0.66]
[1758743884503,36.04,214.06,214.05,4.67180565]
[1758743884712,36.04,214.06,214.05,5.33180565]
[1758743885011,36.04,214.06,214.03,0.66]
[1758743885213,26.0,214.03,214.0,14.05185133]
[1758743885508,36.04,214.02,214.0,14.05185133]
[1758743885713,36.04,214.02,213.98,4.67333395]
[1758743885926,36.04,214.02,213.98,5.33333395]
[1758743886385,36.04,214.02,213.99,0.66]
[1758743886799,36.04,214.02,213.98,4.67333395]
[1758743887119,36.04,214.02,213.98,5.33333395]
[1758743887686,30.67208867,214.04,213.98,5.33333395]
[1758743887892,26.0,214.0,213.97,4.67352259]
[1758743888207,36.04,213.99,213.97,4.67352259]
[1758743889323,36.04,213.99,213.95,0.66]
[1758743889623,36.04,213.99,213.95,5.3338524]
[1758743890291,26.0,213.96,213.95,5.3338524]
[1758743890494,62.04,213.96,213.95,5.3338524]
[1758743892940,30.67268025,214.01,213.95,5.3338524]
[1758743893217,26.0,213.97,213.95,5.3338524]
[1758743893393,26.0,213.97,213.93,11.6858687]
[1758743893394,36.04,213.96,213.93,0.66]
[1758743893595,36.04,213.96,213.91,0.66]
[1758743893786,36.04,213.96,213.89,0.66]
[1758743894828,26.0,213.93,213.89,0.66]
[1758743894998,36.04,213.92,213.89,0.66]
[1758743895423,36.04,213.92,213.89,5.33517691]
[1758743896007,26.0,213.9,213.89,5.33517691]
[1758743896202,36.04,213.9,213.86,0.66]
[1758743896412,36.04,213.9,213.84,11.69059333]
[1758743896413,36.04,213.9,213.87,0.66]
[1758743896826,26.0,213.87,213.82,4.67683097]
[1758743897128,36.04,213.88,213.83,0.66]
[1758743897628,3.73483957,213.99,213.84,16.36737747]
[1758743897800,75.63559401,213.98,213.85,0.66]
[1758743899029,4.67355236,213.97,213.86,16.36584681]
[1758743899403,4.67355236,213.97,213.87,0.66]
[1758743899803,11.68039991,214.04,213.87,0.66]
[1758743900004,49.65559401,214.01,213.87,0.66]
[1758743900802,26.0,213.98,213.87,0.66]
[1758743901002,36.06,213.97,213.88,16.36431643]
[1758743901237,36.06,213.97,213.89,0.71]
[1758743902125,26.0,213.94,213.89,0.71]
[1758743902321,36.06,213.93,213.89,0.71]
[1758743902842,36.06,213.93,213.88,16.36431643]
[1758743903033,36.06,213.93,213.88,11.68879745]
[1758743903837,36.06,213.93,213.88,12.39879745]
[1758743904843,36.06,213.93,213.88,11.68879745]
[1758743905030,26.0,213.94,213.9,16.36278634]
[1758743905214,36.06,213.93,213.91,0.71]
[1758743906316,36.06,213.93,213.92,4.67464472]
[1758743906628,26.0,213.94,213.92,4.67464472]
[1758743906819,36.06,213.93,213.92,16.36125653]
[1758743907021,26.0,213.97,213.92,16.36125653]
[1758743907328,26.0,213.97,213.93,0.71]
[1758743907329,36.06,213.96,213.93,0.71]
[1758743907636,36.06,213.96,213.92,16.36125653]
[1758743908023,36.06,213.96,213.93,0.71]
[1758743908219,36.06,213.96,213.92,17.07125653]
[1758743910724,36.06,213.96,213.92,16.36125653]
[1758743910933,36.06,213.96,213.92,4.67464472]